bitfinex/quotes_ETHUSD_20240730
["timestamp","ask_amount","ask_price","bid_price","bid_amount"]
[1722351352712,4.0094476,3315.7,3315.1,3.01648]
[1722351352918,4.0094976,3315.7,3314.8,2.3476]
[1722351353215,3.01637,3315.3,3315.2,0.05406005]
[1722351353424,3.01647,3315.2,3314.6,10.38693]
[1722351353770,3.01656,3315.1,3314.6,7.37]
[1722351353971,0.55,3315.6,3314.2,3.01726]
[1722351353972,3.01625,3315.4,3314.2,3.01726]
[1722351354287,3.01686,3314.7,3314.1,3.01738]
[1722351354691,3.01706,3314.5,3314.0,3.01749]
[1722351355533,3.01684,3314.8,3314.0,3.01749]
[1722351355696,3.01684,3314.8,3313.9,2.4355]
[1722351355697,3.01672,3314.9,3314.3,3.01717]
[1722351355896,3.0168,3314.8,3314.2,3.01731]
[1722351356100,3.01696,3314.6,3314.0,3.01744]
[1722351356287,3.01691,3314.7,3314.1,3.01738]
[1722351356491,3.01696,3314.6,3314.0,3.01748]
[1722351356716,3.01709,3314.5,3314.0,3.01748]
[1722351357031,3.0,3315.4,3313.7,7.37]
[1722351357233,3.01709,3314.5,3313.9,3.01756]
[1722351357387,3.01692,3314.7,3313.9,3.01757]
[1722351357589,3.01699,3314.6,3314.0,3.01744]
[1722351358039,3.01684,3314.8,3314.2,3.01728]
[1722351358836,3.01659,3315.0,3314.4,6.03421]
[1722351359010,7.47,3315.3,3314.5,0.06034037]
[1722351359211,4.78790876,3315.5,3314.9,3.01667]
[1722351359420,4.78790876,3315.5,3314.7,3.0168]
[1722351359421,3.01598,3315.7,3315.0,3.01657]
[1722351359604,3.01619,3315.5,3315.0,0.05449674]
[1722351359805,3.01628,3315.4,3315.0,0.05449674]
[1722351360003,3.01633,3315.3,3315.0,0.05449674]
[1722351360300,0.603252,3315.3,3314.6,3.01691]
[1722351360626,3.01628,3315.4,3314.8,3.01676]
[1722351360794,3.01641,3315.2,3314.7,0.05462706]
[1722351361000,3.01641,3315.2,3314.9,0.05453849]
[1722351361268,3.01641,3315.2,3314.8,0.05458277]
[1722351361413,3.01626,3315.4,3315.0,0.0544942]
[1722351361624,3.619496,3315.4,3314.9,0.05453849]
[1722351361944,3.01661,3315.0,3314.5,3.01701]
[1722351362140,0.603236,3315.4,3314.6,0.05467136]
[1722351362309,3.01681,3314.8,3314.2,5.37702]
[1722351362515,3.01665,3315.0,3314.3,0.054728]
[1722351362849,3.01678,3314.8,3314.3,0.054728]
[1722351363143,3.01678,3314.8,3314.2,3.01722]
[1722351363144,3.017,3314.6,3314.0,3.01745]
[1722351363341,3.01652,3315.1,3314.3,3.01715]
[1722351363342,3.01664,3315.0,3314.3,3.01715]
[1722351363635,4.46993,3315.0,3314.4,3.07179436]
[1722351363839,3.91995,3315.0,3314.4,0.05472436]
[1722351364196,3.91995,3315.0,3314.4,3.01708]
[1722351364492,3.91991,3315.0,3314.5,0.05468007]
[1722351364697,0.90332,3315.0,3314.5,3.07171007]
[1722351364942,3.0,3315.2,3314.6,3.01694]
[1722351365131,0.55,3315.1,3314.7,0.05459148]
[1722351365446,0.55,3315.1,3314.6,3.01686]
[1722351365616,0.55,3315.1,3314.8,0.05454719]
[1722351365820,0.55,3315.1,3314.7,0.05459148]
[1722351366143,3.01659,3315.0,3314.8,0.05469712]
[1722351366355,4.223151,3315.1,3314.2,6.03449]
[1722351366356,3.01668,3314.9,3314.2,6.03449]
[1722351366507,4.223201,3315.1,3314.3,3.0172]
[1722351366508,3.01678,3314.8,3314.3,3.0172]
[1722351366856,3.01678,3314.8,3313.9,7.37]
[1722351367004,3.01702,3314.6,3313.9,10.38753]
[1722351367203,3.01704,3314.5,3314.0,3.01745]
[1722351367613,3.01691,3314.7,3314.1,3.01733]
[1722351367817,3.01677,3314.8,3314.2,3.01724]
[1722351368021,3.01664,3315.0,3314.5,3.01704]
[1722351368312,1.206641,3315.1,3314.5,3.01704]
[1722351368313,0.55,3314.9,3314.5,3.01704]
[1722351368503,3.01619,3315.5,3314.8,3.01672]
[1722351368708,0.66411996,3315.4,3314.6,3.01694]
[1722351369033,0.11411996,3315.3,3314.7,3.0168]
[1722351369228,0.1141191,3315.2,3314.7,3.0168]
[1722351369447,3.56629,3315.4,3314.9,3.01668]
[1722351369448,0.55,3315.4,3314.9,3.01668]
[1722351369610,0.55,3315.4,3314.7,2.2876]
[1722351369611,3.56618,3315.5,3315.0,3.01652]
[1722351369810,3.56618,3315.5,3314.7,2.2876]
[1722351369811,4.971399,3315.5,3314.8,3.01668]
[1722351370048,16.18255193,3316.1,3314.7,2.2876]
[1722351370049,0.11412135,3315.4,3314.9,0.0603328]
[1722351370216,0.5086957,3316.0,3315.2,3.01635]
[1722351370567,0.5086957,3316.0,3315.4,3.0162]
[1722351370568,0.11410248,3315.9,3315.4,3.0162]
[1722351370851,0.11410248,3315.9,3315.5,3.01613]
[1722351371148,3.01564,3316.1,3315.4,3.0162]
[1722351371359,3.01564,3316.1,3315.3,3.01631]
[1722351371360,3.01582,3315.9,3315.3,3.01631]
[1722351371560,0.11412509,3315.8,3315.3,3.01631]
[1722351371949,0.11412509,3315.8,3315.3,3.01625]
[1722351372126,3.317254,3316.0,3315.4,3.01617]
[1722351372460,3.317254,3316.0,3315.5,3.01612]
[1722351372461,0.11411304,3315.9,3315.5,3.01612]
[1722351372808,0.11411304,3315.9,3315.6,3.01602]
[1722351373413,1.56299208,3317.1,3316.2,3.01543]
[1722351373657,2.3828,3317.4,3316.6,3.01507]
[1722351373870,3.01464,3317.2,3316.5,3.01522]
[1722351374031,3.01455,3317.3,3316.6,3.01507]
[1722351374207,3.01455,3317.3,3316.5,3.01521]
[1722351374413,5.39725,3317.4,3316.9,3.01486]
[1722351374414,2.3828,3317.4,3316.9,3.01486]
[1722351374608,0.539707,3317.4,3316.9,3.01486]
[1722351374811,0.539707,3317.4,3316.7,3.01499]
[1722351374812,3.554117,3317.4,3316.7,3.01499]
[1722351375033,3.554117,3317.4,3316.7,3.01497]
[1722351375248,3.0145,3317.3,3316.7,3.01497]
[1722351375425,0.539707,3317.4,3316.7,3.01497]
[1722351375762,0.3554107,3317.3,3316.7,3.01497]
[1722351375926,6.02895,3317.4,3316.7,3.01497]
[1722351376133,0.31570674,3318.3,3317.1,6.22559]
[1722351376343,0.31570674,3318.3,3317.7,3.01407]
[1722351376541,0.375,3318.4,3317.2,3.01454]
[1722351376542,3.01402,3317.9,3317.2,3.01454]
[1722351376862,0.301402,3317.8,3317.3,3.01448]
[1722351377061,3.01363,3318.3,3316.8,5.4307]
[1722351377062,3.01363,3318.3,3316.9,0.0602895]
[1722351377215,0.375,3318.4,3317.2,3.01455]
[1722351377216,3.01369,3318.2,3317.2,3.01455]
[1722351377414,3.01369,3318.2,3317.5,3.01431]
[1722351377654,0.301369,3318.1,3317.5,3.01431]
[1722351377859,0.301369,3318.1,3317.7,3.01407]
[1722351378155,3.38853,3318.4,3317.7,3.01407]
[1722351378763,0.375,3318.4,3317.8,3.01399]
[1722351379216,3.375,3318.4,3317.8,3.01399]
[1722351379921,3.0136,3318.3,3317.5,3.01427]
[1722351380118,3.01377,3318.1,3317.5,3.01427]
[1722351380319,3.01387,3318.0,3317.3,3.01445]
[1722351380558,3.6526,3318.2,3317.5,3.01428]
[1722351380756,3.65254,3318.2,3317.6,3.0142]
[1722351380920,3.01377,3318.1,3317.4,3.01435]
[1722351381116,3.680386,3318.1,3317.5,3.06666946]
[1722351381340,3.680386,3318.1,3317.5,0.05236946]
[1722351381542,0.55,3318.0,3317.5,0.05236946]
[1722351381758,3.01401,3317.9,3317.3,3.01449]
[1722351381965,0.356401,3317.8,3317.3,3.01449]
[1722351382258,0.356401,3317.8,3317.4,0.05241368]
[1722351383018,0.356401,3317.8,3317.5,3.01429]
[1722351383217,0.356401,3317.8,3317.4,0.05241368]
[1722351383218,0.55,3318.0,3317.6,3.01416]
[1722351383420,0.55,3318.0,3317.6,0.05232524]
[1722351383869,0.375,3318.4,3317.5,3.0143]
[1722351383870,3.01383,3318.1,3317.5,3.0143]
[1722351384067,0.55,3318.0,3317.7,0.05228103]
[1722351384279,0.55,3318.0,3317.6,0.05232524]
[1722351384446,0.906383,3318.0,3317.8,0.05223682]
[1722351384654,0.55,3318.0,3317.7,0.05228103]
[1722351384899,0.55,3318.2,3317.9,0.05219261]
[1722351385101,0.356363,3318.1,3317.8,0.05223682]
[1722351385384,0.55,3318.0,3317.3,3.01444]
[1722351385590,3.56386,3318.0,3317.9,0.05219261]
[1722351385897,3.01397,3317.9,3317.3,3.01444]
[1722351386196,3.370367,3317.9,3317.4,0.05241368]
[1722351386398,3.01409,3317.8,3317.4,0.05241368]
[1722351386800,3.01431,3317.5,3316.6,3.01508]
[1722351387023,3.01444,3317.4,3316.6,3.01508]
[1722351387172,3.01444,3317.4,3316.6,3.01505]
[1722351387382,3.01444,3317.4,3316.8,3.01487]
[1722351387383,0.851444,3317.3,3316.8,3.01487]
[1722351387569,0.851444,3317.3,3316.4,3.01528]
[1722351387765,3.01482,3317.0,3316.4,3.01528]
[1722351388100,3.01462,3317.2,3316.4,6.03052]
[1722351388314,0.55,3317.3,3316.2,7.37]
[1722351388490,3.01432,3317.5,3316.7,3.01502]
[1722351388698,0.301432,3317.4,3316.9,3.01479]
[1722351388863,3.301432,3317.4,3316.9,3.01485]
[1722351389067,3.0,3317.4,3316.5,3.01514]
[1722351389261,3.01468,3317.1,3316.5,3.01514]
[1722351389463,3.01487,3316.9,3316.2,7.37]
[1722351389668,3.01487,3316.9,3316.3,3.01539]
[1722351390069,3.01487,3316.9,3316.3,6.03074]
[1722351390269,3.01487,3316.9,3316.3,3.01535]
[1722351391492,3.01527,3316.5,3315.9,3.0157]
[1722351391692,3.01509,3316.7,3316.0,3.0156]
[1722351391921,3.5652,3316.6,3316.0,3.0156]
[1722351392134,0.55,3316.8,3316.0,3.0156]
[1722351392298,0.84874,3316.8,3316.0,3.01565]
[1722351392500,3.0151,3316.7,3316.1,3.01558]
[1722351393011,3.0151,3316.7,3316.0,3.01565]
[1722351393012,3.0151,3316.7,3316.2,3.01549]
[1722351393378,3.0151,3316.7,3316.0,3.01561]
[1722351393596,3.01523,3316.5,3315.8,2.8658]
[1722351393847,3.618303,3316.5,3315.7,3.0159]
[1722351394122,6.03095,3316.3,3315.7,3.0159]
[1722351394336,3.0156,3316.1,3315.3,5.38216]
[1722351394482,0.603095,3316.3,3315.6,3.01598]
[1722351394683,0.84874,3316.8,3315.4,3.01617]
[1722351394885,0.84874,3316.8,3315.3,2.3659]
[1722351394886,3.01584,3315.9,3315.3,3.01629]
[1722351395511,3.01553,3316.2,3315.4,3.01614]
[1722351395832,3.01569,3316.0,3315.4,3.01614]
[1722351396127,3.01577,3315.9,3315.4,3.01614]
[1722351396336,3.01577,3315.9,3315.5,0.05167441]
[1722351396913,3.01577,3315.9,3315.0,3.01653]
[1722351396914,3.01601,3315.7,3315.0,3.01653]
[1722351397108,3.01629,3315.4,3314.7,7.37]
[1722351397438,3.01629,3315.4,3314.8,3.01672]
[1722351398022,3.01645,3315.2,3314.7,7.37]
[1722351398197,3.01578,3315.9,3314.7,7.37]
[1722351398397,3.01628,3315.4,3314.8,3.01674]
[1722351398976,3.01609,3315.6,3315.0,3.01659]
[1722351399177,0.6032,3315.6,3315.1,3.01649]
[1722351399376,3.01576,3316.0,3315.4,3.01621]
[1722351399690,6.5240357,3316.4,3315.2,3.01634]
[1722351399824,3.01564,3316.1,3315.4,3.0162]
[1722351400031,3.55,3316.0,3315.4,3.0162]
[1722351400231,3.01593,3315.8,3315.2,3.01635]
[1722351400435,4.206564,3316.0,3315.3,3.01624]
[1722351400774,3.01551,3316.2,3315.6,3.01597]
[1722351400935,0.5086957,3316.4,3315.6,3.01597]
[1722351400936,3.01542,3316.3,3315.6,3.01597]
[1722351401135,0.5086957,3316.4,3315.9,3.01575]
[1722351401368,0.5086957,3316.4,3315.7,0.0603156]
[1722351401369,3.01508,3316.7,3315.7,0.0603156]
[1722351401687,3.01527,3316.5,3315.8,3.01579]
[1722351401832,0.331382,3316.7,3315.8,6.0316]
[1722351401833,3.01532,3316.4,3315.8,6.0316]
[1722351402033,3.01532,3316.4,3315.8,3.0158]
[1722351402264,3.01558,3316.2,3315.7,0.06031158]
[1722351402579,3.01558,3316.2,3315.6,3.01598]
[1722351402580,3.01556,3316.2,3315.6,3.01604]
[1722351402791,3.01556,3316.2,3315.6,6.03202]
[1722351403004,3.01536,3316.4,3315.7,0.0603116]
[1722351403371,3.01542,3316.3,3315.7,0.0603116]
[1722351403888,3.01542,3316.3,3315.6,6.03194]
[1722351404347,3.01542,3316.3,3315.7,3.01593]
[1722351404747,3.01523,3316.5,3315.9,3.01575]
[1722351404996,3.01534,3316.4,3315.9,3.01575]
[1722351405531,3.01534,3316.4,3315.7,3.01594]
[1722351405945,3.01559,3316.1,3315.5,6.03218]
[1722351406086,0.331382,3316.7,3315.7,3.01594]
[1722351406460,3.01543,3316.3,3315.7,3.01594]
[1722351406628,3.01543,3316.3,3315.5,3.01608]
[1722351406629,3.01559,3316.1,3315.6,3.01603]
[1722351406786,0.55,3316.6,3315.3,5.37716]
[1722351406787,3.01577,3315.9,3315.3,5.37716]
[1722351406992,3.01577,3315.9,3315.2,7.37]
[1722351406993,3.0159,3315.8,3315.2,3.01636]
[1722351407295,3.01595,3315.7,3315.2,3.01636]
[1722351407495,3.01613,3315.5,3315.0,3.01654]
[1722351407708,3.01609,3315.6,3315.1,3.01648]
[1722351408089,3.01615,3315.5,3314.8,9.758]
[1722351408594,3.01615,3315.5,3314.8,12.77476]
[1722351408595,3.01636,3315.3,3314.8,12.77476]
[1722351408808,0.603204,3315.6,3314.8,12.77476]
[1722351408809,3.01622,3315.4,3314.8,10.38672]
[1722351409022,0.603204,3315.6,3314.8,7.37]
[1722351409199,3.01628,3315.4,3314.8,7.37]
[1722351409407,3.01638,3315.3,3314.8,7.37]
[1722351409923,3.01641,3315.2,3314.8,7.37]
[1722351410538,3.01632,3315.3,3314.8,10.38677]
[1722351410889,3.01623,3315.4,3314.9,3.01668]
[1722351411092,3.01619,3315.5,3315.0,3.01658]
[1722351411290,3.0,3315.7,3315.0,0.05061646]
[1722351411486,3.01639,3315.3,3315.0,0.05061646]
[1722351411791,3.01639,3315.3,3314.8,7.37]
[1722351412004,3.01618,3315.5,3314.9,3.06753105]
[1722351412241,3.01636,3315.3,3314.9,0.05086105]
[1722351412540,3.01651,3315.1,3314.9,0.05086105]
[1722351412686,3.01649,3315.2,3314.9,0.05086105]
[1722351412890,3.01651,3315.1,3314.5,3.01704]
[1722351413088,3.01651,3315.1,3315.0,0.05081677]
[1722351413289,3.01651,3315.1,3314.6,3.01693]
[1722351413489,3.01651,3315.1,3315.0,0.05081677]
[1722351413736,3.01651,3315.1,3314.6,3.01693]
[1722351413936,3.01651,3315.1,3315.0,0.05081677]
[1722351414142,3.01632,3315.3,3314.7,3.01686]
[1722351414340,3.01632,3315.3,3315.0,0.05081677]
[1722351414516,3.01632,3315.3,3314.8,3.01676]
[1722351414700,3.01623,3315.4,3315.1,0.05077248]
[1722351414897,3.01633,3315.3,3314.7,3.01678]
[1722351415102,3.01633,3315.3,3314.3,5.2998]
[1722351415103,3.01652,3315.1,3314.5,3.01695]
[1722351415357,3.01652,3315.1,3314.8,0.05090534]
[1722351415519,3.01664,3315.0,3314.5,3.01695]
[1722351415721,3.01664,3315.0,3314.9,0.05086105]
[1722351415904,3.01652,3315.1,3314.4,3.01706]
[1722351416107,3.01652,3315.1,3314.9,0.05086105]
[1722351416446,3.01652,3315.1,3314.5,3.01698]
[1722351416447,3.01659,3315.0,3314.5,3.01698]
[1722351416611,3.01652,3315.1,3314.5,3.01698]
[1722351416806,3.01652,3315.1,3314.5,3.546938]
[1722351417042,3.01637,3315.3,3314.5,0.529958]
[1722351417201,3.01637,3315.3,3314.7,3.01681]
[1722351417783,3.01643,3315.2,3314.7,3.01685]
[1722351417955,6.03255,3315.4,3314.7,3.01681]
[1722351418241,3.619495,3315.4,3314.6,3.0169]
[1722351418441,3.01624,3315.4,3314.7,3.01678]
[1722351418755,3.01617,3315.5,3314.9,3.01661]
[1722351419112,3.01617,3315.5,3314.9,3.01662]
[1722351420055,13.48581,3315.9,3314.8,3.01676]
[1722351420344,3.01614,3315.5,3314.9,3.01663]
[1722351420556,3.01614,3315.5,3314.3,2.2826]
[1722351420557,1.348581,3315.8,3315.1,3.01645]
[1722351420704,3.01595,3315.7,3315.1,3.01641]
[1722351420914,3.01595,3315.7,3315.2,3.01634]
[1722351421175,7.47,3315.9,3315.3,3.0163]
[1722351421303,7.47,3315.9,3314.6,2.3437]
[1722351421538,9.782,3315.9,3314.6,2.3437]
[1722351421742,9.782,3315.9,3314.5,3.01698]
[1722351421743,3.01666,3315.0,3314.5,3.01698]
[1722351422065,3.01638,3315.3,3314.7,3.01686]
[1722351422266,3.01665,3315.0,3314.5,3.01698]
[1722351422590,3.01629,3315.4,3314.8,3.01671]
[1722351422738,3.0,3315.8,3314.4,3.01707]
[1722351423090,3.01646,3315.2,3314.6,3.01691]
[1722351423288,3.56596,3315.7,3314.6,3.01691]
[1722351423289,3.01636,3315.3,3314.7,3.01679]
[1722351423500,3.01636,3315.3,3314.8,3.01677]
[1722351423984,3.01646,3315.2,3314.4,3.01707]
[1722351424185,3.01672,3314.9,3314.4,3.01713]
[1722351424541,3.01659,3315.0,3314.4,3.01708]
[1722351424760,3.01668,3314.9,3314.3,3.01716]
[1722351424940,3.01668,3314.9,3314.2,11.456787]
[1722351425311,3.01677,3314.8,3314.3,3.01722]
[1722351425456,3.01669,3314.9,3314.2,7.37]
[1722351426087,3.01688,3314.7,3314.2,10.38731]
[1722351426241,3.01702,3314.6,3314.3,0.05141842]
[1722351426436,3.01702,3314.6,3314.2,7.37]
[1722351426739,3.01702,3314.6,3314.4,0.05137412]
[1722351426973,3.01686,3314.7,3314.3,0.05141842]
[1722351427184,3.01695,3314.6,3314.5,0.05132982]
[1722351427389,3.01695,3314.6,3314.4,0.05137412]
[1722351427390,6.03408,3314.5,3314.4,0.05137412]
[1722351427542,3.01732,3314.2,3313.7,3.01771]
[1722351427974,3.56711,3314.5,3313.8,3.01767]
[1722351428237,3.01674,3314.9,3314.0,3.01747]
[1722351428442,3.01674,3314.9,3314.1,0.06034433]
[1722351428650,3.01674,3314.9,3314.3,3.01722]
[1722351429317,3.01681,3314.8,3314.3,3.01718]
[1722351429669,3.01659,3315.0,3314.3,3.01717]
[1722351429867,3.01659,3315.0,3314.5,3.01704]
[1722351430103,3.01654,3315.1,3314.5,3.01699]
[1722351430351,3.56664,3315.0,3314.4,3.01713]
[1722351430503,0.55,3315.0,3314.4,6.03419]
[1722351430671,3.56656,3315.1,3314.5,3.01701]
[1722351431016,3.01668,3314.9,3314.3,3.01716]
[1722351431319,3.01668,3314.9,3313.5,35.0]
[1722351431320,2.3351,3314.8,3313.3,5.4291]
[1722351431522,2.3351,3314.8,3313.9,3.01754]
[1722351431523,3.01709,3314.5,3313.9,3.01754]
[1722351431674,3.01704,3314.6,3313.9,3.01754]
[1722351432176,3.01718,3314.4,3313.6,5.36451]
[1722351432377,3.01718,3314.4,3313.6,6.200961]
[1722351432615,3.01723,3314.3,3313.8,3.01767]
[1722351432921,3.01723,3314.3,3313.8,3.01762]
[1722351433469,3.01723,3314.3,3313.6,6.200941]
[1722351433717,3.01723,3314.3,3313.2,3.01819]
[1722351433718,0.83851,3314.7,3313.2,3.01816]
[1722351433875,0.83851,3314.7,3312.4,35.0]
[1722351433876,3.01791,3313.6,3313.0,3.01836]
[1722351434816,5.42805,3314.5,3312.6,2.4216]
[1722351434817,3.01795,3313.5,3312.6,2.4216]
[1722351435119,6.03635,3313.3,3312.6,2.4216]
[1722351435317,3.01813,3313.3,3312.7,3.01864]
[1722351435476,3.01804,3313.4,3312.8,3.01854]
[1722351435665,3.01804,3313.4,3312.9,3.0185]
[1722351436337,2.3264,3314.0,3312.6,2.4216]
[1722351436338,2.3264,3314.0,3313.1,3.01824]
[1722351436478,0.47374,3313.9,3313.4,3.01801]
[1722351436697,3.0,3314.3,3313.3,3.01807]
[1722351436898,3.01773,3313.8,3312.7,5.42966]
[1722351437093,3.0,3314.3,3313.5,3.01787]
[1722351437299,3.56733,3314.2,3313.6,3.01781]
[1722351437560,3.0181,3313.4,3312.7,3.0186]
[1722351437716,3.01825,3313.2,3312.0,2.4891]
[1722351437895,0.55,3313.1,3312.2,3.01909]
[1722351438099,0.55,3313.1,3311.9,3.01936]
[1722351438100,3.01871,3312.7,3311.9,3.01936]
[1722351438323,3.01882,3312.6,3312.0,3.0193]
[1722351438544,3.01871,3312.7,3311.8,3.01941]
[1722351438545,3.01888,3312.5,3311.8,3.01941]
[1722351438742,3.01888,3312.5,3311.9,3.01936]
[1722351438942,3.01879,3312.6,3312.0,3.01932]
[1722351440142,3.01914,3312.2,3311.6,3.01963]
[1722351440461,0.55,3312.5,3311.9,3.01935]
[1722351440675,0.55,3312.5,3311.3,35.0]
[1722351440676,3.01864,3312.8,3312.1,3.01918]
[1722351440840,0.301864,3312.7,3312.1,3.01918]
[1722351441162,3.01882,3312.6,3312.0,3.01931]
[1722351441365,3.320574,3312.7,3312.2,0.04926383]
[1722351441568,3.320574,3312.7,3312.1,3.06852819]
[1722351441721,3.01879,3312.6,3312.3,0.04921948]
[1722351441921,3.01895,3312.4,3312.2,0.04926383]
[1722351442120,3.01895,3312.4,3311.8,3.01944]
[1722351442121,3.01905,3312.3,3311.8,3.01944]
[1722351442337,0.301864,3312.7,3312.0,3.01927]
[1722351442338,3.01881,3312.6,3312.0,3.01927]
[1722351442619,3.01881,3312.6,3312.0,6.03852]
[1722351442829,3.01864,3312.8,3312.0,3.01927]
[1722351443032,3.01871,3312.7,3312.1,3.01917]
[1722351443442,3.01871,3312.7,3312.2,3.01914]
[1722351443658,3.0186,3312.8,3312.2,3.01914]
[1722351444364,6.03727,3312.8,3312.2,3.01914]
[1722351444667,3.0186,3312.8,3311.8,3.01945]
[1722351444833,3.0186,3312.8,3312.0,3.01926]
[1722351444834,3.01882,3312.6,3312.0,3.01926]
[1722351446067,3.650544,3313.0,3312.2,3.01908]
[1722351446369,3.0,3313.2,3312.6,3.01874]
[1722351446580,7.47,3313.5,3312.7,3.01868]
[1722351446859,3.01842,3313.0,3312.3,3.01899]
[1722351447368,3.01847,3313.0,3312.4,3.01888]
[1722351447667,3.01847,3313.0,3312.3,3.01899]
[1722351447822,3.01847,3313.0,3312.5,3.01886]
[1722351448035,3.01832,3313.1,3312.5,3.01881]
[1722351448227,3.01828,3313.2,3311.9,2.2684]
[1722351448433,7.47,3313.5,3312.7,3.0186]
[1722351448665,3.56812,3313.4,3312.5,3.01878]
[1722351448934,3.01832,3313.1,3312.5,3.01881]
[1722351449185,3.01832,3313.1,3312.6,3.06868765]
[1722351449371,3.01823,3313.2,3312.6,3.06867765]
[1722351449590,3.01833,3313.1,3312.6,3.06867765]
[1722351450984,3.01833,3313.1,3312.6,0.04997765]
[1722351451155,3.01841,3313.0,3312.6,0.04997765]
[1722351451357,3.01841,3313.0,3312.5,3.01884]
[1722351451559,0.55,3313.4,3312.7,0.0499333]
[1722351451775,3.01837,3313.1,3312.6,0.04997765]
[1722351451971,3.01841,3313.0,3312.8,0.04988896]
[1722351452290,0.802,3313.3,3312.1,0.58601136]
[1722351452291,3.01879,3312.6,3312.1,3.01915]
[1722351452493,0.301879,3312.5,3311.7,3.01953]
[1722351452984,3.01879,3312.6,3312.1,3.01922]
[1722351453184,3.01865,3312.8,3312.2,3.01913]
[1722351453482,3.01865,3312.8,3312.2,0.05013474]
[1722351453483,3.01882,3312.6,3312.2,0.05013474]
[1722351453698,3.01873,3312.7,3312.2,3.06926474]
[1722351453843,0.55,3312.6,3312.2,3.01913]
[1722351454041,0.55,3312.6,3312.3,0.05009038]
[1722351454470,7.47,3313.1,3312.4,3.01893]
[1722351454671,3.01895,3312.4,3312.3,0.05009038]
[1722351454884,3.01909,3312.3,3311.7,3.01954]
[1722351455091,2.3914,3312.2,3311.0,3.1860824]
[1722351455289,2.3914,3312.2,3311.0,0.1658524]
[1722351455290,3.01966,3311.7,3311.0,0.1658524]
[1722351455550,0.55,3312.3,3311.0,0.49377495]
[1722351455756,12.8614,3312.6,3311.8,3.0195]
[1722351455988,12.8614,3312.6,3311.5,5.38255]
[1722351455989,7.47,3312.6,3312.1,3.01923]
[1722351456194,7.47,3312.6,3311.8,3.01945]
[1722351456505,10.48879,3312.6,3312.0,3.01927]
[1722351456654,10.48879,3312.6,3311.8,3.01945]
[1722351456655,0.55,3312.4,3311.9,3.06959989]
[1722351456992,7.47,3312.6,3312.1,3.01918]
[1722351457294,7.47,3312.6,3311.9,0.05023989]
[1722351457295,3.01887,3312.5,3312.2,0.05010681]
[1722351457499,7.47,3312.6,3312.2,0.05010681]
[1722351457654,7.47,3312.6,3312.1,3.01917]
[1722351457855,7.47,3312.6,3312.2,0.05010681]
[1722351458155,3.01902,3312.4,3311.9,3.0194]
[1722351458507,0.55,3312.5,3312.0,3.06946553]
[1722351458655,0.55,3312.5,3312.1,3.01923]
[1722351458860,0.55,3312.5,3312.2,3.01914]
[1722351459094,0.55,3312.5,3312.3,0.05006245]
[1722351459326,3.56892,3312.5,3312.3,0.05006245]
[1722351459683,3.56892,3312.5,3311.9,3.01941]
[1722351459887,4.974658,3312.5,3311.2,35.0]
[1722351460085,3.01921,3312.2,3312.0,0.05019553]
[1722351460292,3.01911,3312.3,3312.0,0.05019553]
[1722351460293,3.01923,3312.1,3312.0,0.05019553]
[1722351460524,3.01914,3312.2,3312.1,0.05015117]
[1722351460714,3.56914,3312.2,3312.0,0.05019553]
[1722351460917,3.01928,3312.1,3311.5,3.01971]
[1722351461123,3.01914,3312.2,3312.1,0.05015117]
[1722351461321,0.55,3312.2,3311.7,3.01954]
[1722351461636,0.55,3312.5,3312.0,3.01931]
[1722351462051,0.55,3312.5,3312.1,0.05015117]
[1722351462196,3.56892,3312.5,3312.1,0.05015117]
[1722351462534,3.56892,3312.5,3311.5,3.01971]
[1722351462535,3.01911,3312.3,3311.5,3.01971]
[1722351462833,3.01911,3312.3,3311.0,0.49377495]
[1722351462834,0.55,3312.2,3311.6,3.01961]
[1722351463138,3.01928,3312.1,3311.6,3.069983]
[1722351463345,0.55,3312.0,3311.6,0.050373]
[1722351463505,3.01941,3311.9,3311.6,0.050373]
[1722351463695,3.56934,3312.0,3311.3,3.01989]
[1722351463892,3.56934,3312.0,3311.7,0.05032863]
[1722351463893,0.55,3312.0,3311.7,0.05032863]
[1722351464145,3.56925,3312.1,3311.5,3.0197]
[1722351464297,3.01937,3312.0,3311.8,0.05028426]
[1722351464497,0.55,3311.9,3311.0,0.1658524]
[1722351464739,3.01973,3311.6,3311.1,3.02013]
[1722351465061,3.01973,3311.6,3311.1,0.05059491]
[1722351465195,3.62368,3311.6,3311.0,0.1658524]
[1722351465395,0.55,3311.5,3311.2,0.05055052]
[1722351465614,0.55,3311.5,3311.0,3.1860624]
[1722351465827,3.01991,3311.4,3311.0,0.1658524]
[1722351466006,3.01991,3311.4,3311.1,0.05059491]
[1722351466643,3.01985,3311.5,3311.1,0.05059491]
[1722351466866,3.01985,3311.5,3311.1,3.07072491]
[1722351466867,3.01978,3311.5,3311.1,3.07072491]
[1722351467030,3.01978,3311.5,3311.1,0.05059491]
[1722351467234,3.01988,3311.4,3311.1,0.05059491]
[1722351467525,3.02001,3311.3,3311.1,0.05059491]
[1722351467842,3.57001,3311.3,3311.1,0.05059491]
[1722351468244,0.55,3311.3,3311.1,0.05059491]
[1722351468612,0.55,3311.6,3311.1,0.05059491]
[1722351468918,3.56975,3311.6,3311.1,0.05059491]
[1722351469415,0.55,3311.6,3311.2,3.02]
[1722351469612,0.55,3311.7,3311.3,0.04989416]
[1722351469864,0.906955,3311.7,3311.0,0.1658524]
[1722351470018,6.01938,3312.0,3311.3,3.01987]